[Event "Vienna Championship-B 2022"]
[Site "Vienna"]
[Date "2022.09.17"]
[Round "1.6"]
[White "Stadlinger, Lukas"]
[Black "Anastasakis, Georgios"]
[Result "0-1"]
[ECO "A01"]
[WhiteElo "1729"]
[BlackElo "1893"]
[Annotator "NA COMBH"]
[PlyCount "80"]
[EventDate "2022.09.17"]
[EventType "swiss"]
[EventCountry "AUT"]
[SourceTitle "playchess.com"]
[Source "ChessBase"]
[SourceQuality "1"]
[TimeControl "5400+30"]

1. b3 {[%emt 0:00:14]} e5 {[%emt 0:00:05]} 2. Bb2 {[%emt 0:00:42]} Nc6 {[%emt 0:00:08]} 3. e3 {[%emt 0:00:54]} g6 {[%emt 1:31:47]} 4. c4 {[%emt 0:04:48]} Bg7 {[%emt 0:00:00]} 5. Nc3 {[%emt 0:01:00]} Nge7 {[%emt 0:00:00]} 6. Nge2 {[%emt 0:04:47]} d6 {[%emt 0:00:00]} 7. a3 {[%emt 0:01:57]} Be6 {[%emt 0:00:00]} 8. g3 {[%emt 0:06:15]} O-O {[%emt 0:00:00]} 9. Bg2 {[%emt 0:03:23]} d5 {[%emt 0:00:00]} 10. d3 {[%emt 0:10:32]} Qd7 {[%emt 0:00:00]} 11. Qc2 {[%emt 0:08:19]} Rad8 {[%emt 0:00:00]} 12. Rd1 {[%emt 0:04:09]} d4 {[%emt 0:00:00]} 13. exd4 {[%emt 0:03:05]} exd4 {[%emt 0:00:00]} 14. Ne4 {[%emt 0:01:09]} b6 {[%emt 0:00:00]} 15. Nf4 {[%emt 0:06:16]} Ne5 {[%emt 0:00:00]} 16. O-O {[%emt 0:05:43]} Bg4 {[%emt 0:00:00]} 17. f3 {[%emt 0:03:59]} Be6 {[%emt 0:00:00]} 18. Rde1 {[%emt 0:05:11]} Nf5 {[%emt 0:00:00]} 19. Bc1 {[%emt 0:04:01]} Rfe8 {[%emt 0:00:00]} 20. Re2 {[%emt 0:05:03]} c5 {[%emt 0:00:00]} 21. a4 {[%emt 0:02:36]} Nc6 {[%emt 0:00:00]} 22. Ng5 {[%emt 0:04:59]} Ne3 {[%emt 0:00:00]} 23. Bxe3 {[%emt 0:01:06]} dxe3 {[%emt 0:00:00]} 24. Ngxe6 {[%emt 0:01:49]} Rxe6 {[%emt 0:00:00]} 25. Nd5 {[%emt 0:01:28]} Nd4 {[%emt 0:00:00]} 26. Qd1 {[%emt 0:00:05]} Nxe2+ {[%emt 0:00:00]} 27. Qxe2 {[%emt 0:00:37]} f5 {[%emt 0:00:00]} 28. f4 {[%emt 0:01:31]} Qd6 {[%emt 0:00:00]} 29. Rd1 {[%emt 0:02:14]} h6 {[%emt 0:00:00]} 30. Kh1 {[%emt 0:01:41]} Bd4 {[%emt 0:00:00]} 31. Rf1 {[%emt 0:00:33]} Kg7 {[%emt 0:00:00]} 32. Bh3 {[%emt 0:02:10]} Qc6 {[%emt 0:00:00]} 33. Bg2 {[%emt 0:00:08]} Qc8 {[%emt 0:00:00]} 34. Bh3 {[%emt 0:00:16]} h5 {[%emt 0:00:00]} 35. Rg1 {[%emt 0:01:18]} Kf7 {[%emt 0:01:44]} 36. Rg2 {[%emt 0:01:05]} Qb7 {[%emt 0:00:41]} 37. Rg1 {[%emt 0:00:26]} Rh8 {[%emt 0:02:56]} 38. Bg2 {[%emt 0:00:18]} Qd7 {[%emt 0:00:26]} 39. Bf3 {[%emt 0:00:09]} a6 {[%emt 0:01:19]} 40. Nxb6 {[%emt 0:00:40]} Rxb6 {[%emt 0:00:35]} 0-1

[Event "Vienna Championship-B 2022"]
[Site "Vienna"]
[Date "2022.09.17"]
[Round "1.7"]
[White "Andresen, Erik"]
[Black "Kern, Julian"]
[Result "1-0"]
[ECO "B86"]
[WhiteElo "1879"]
[BlackElo "1694"]
[Annotator "NA COMBH"]
[PlyCount "52"]
[EventDate "2022.09.17"]
[EventType "swiss"]
[EventCountry "AUT"]
[SourceTitle "playchess.com"]
[Source "ChessBase"]
[SourceQuality "1"]
[TimeControl "5400+30"]

1. e4 {[%emt 0:00:29]} c5 {[%emt 0:00:10]} 2. Nf3 {[%emt 0:00:04]} d6 {[%emt 0:00:08]} 3. d4 {[%emt 0:00:04]} cxd4 {[%emt 0:00:10]} 4. Nxd4 {[%emt 0:00:05]} Nf6 {[%emt 0:00:13]} 5. Nc3 {[%emt 0:00:04]} a6 {[%emt 0:00:05]} 6. Bc4 {[%emt 0:00:09]} e6 {[%emt 0:00:37]} 7. Bb3 {[%emt 0:00:06]} Be7 {[%emt 0:00:50]} 8. g4 {[%emt 0:00:07]} O-O {[%emt 0:03:18]} 9. g5 {[%emt 0:00:40]} Ne8 {[%emt 0:00:22]} 10. Be3 {[%emt 0:01:13]} Nc6 {[%emt 0:03:16]} 11. Rg1 {[%emt 0:01:41]} Na5 {[%emt 0:03:19]} 12. Qh5 {[%emt 0:04:27]} Nxb3 {[%emt 0:03:33]} 13. axb3 {[%emt 0:00:46]} f5 {[%emt 0:09:44]} 14. exf5 {[%emt 0:11:59]} exf5 {[%emt 0:01:07]} 15. Nd5 {[%emt 0:01:28]} g6 {[%emt 0:08:09]} 16. Qe2 {[%emt 0:12:50]} Nc7 {[%emt 0:05:22]} 17. Qc4 {[%emt 0:06:52]} Nxd5 {[%emt 0:05:49]} 18. Qxd5+ {[%emt 0:00:35]} Rf7 {[%emt 0:00:25]} 19. O-O-O {[%emt 0:02:58]} Bf8 {[%emt 0:04:22]} 20. h4 {[%emt 0:13:50]} Qc7 {[%emt 0:03:58]} 21. h5 {[%emt 0:07:01]} Bg7 {[%emt 0:05:25]} 22. hxg6 {[%emt 0:00:54]} hxg6 {[%emt 0:00:11]} 23. Ne6 {[%emt 0:11:49]} Bxe6 {[%emt 0:04:14]} 24. Qxe6 {[%emt 0:00:22]} Rc8 {[%emt 0:01:05]} 25. c3 {[%emt 0:07:33]} Qa5 {[%emt 0:17:59]} 26. Qxc8+ {[%emt 0:00:12]} Qd8 {[%emt 0:02:03]} 1-0

[Event "Vienna Championship-B 2022"]
[Site "Vienna"]
[Date "2022.09.17"]
[Round "1.8"]
[White "Pavlov, Alexander"]
[Black "Bytyqi, Kujtim"]
[Result "0-1"]
[ECO "B01"]
[WhiteElo "1751"]
[BlackElo "1862"]
[Annotator "NA COMBH"]
[PlyCount "80"]
[EventDate "2022.09.17"]
[EventType "swiss"]
[EventCountry "AUT"]
[SourceTitle "playchess.com"]
[Source "ChessBase"]
[SourceQuality "1"]
[TimeControl "5400+30"]

1. e4 {[%emt 0:00:01]} d5 {[%emt 0:00:11]} 2. exd5 {[%emt 0:00:10]} Nf6 {[%emt 0:00:04]} 3. d4 {[%emt 0:00:33]} Bg4 {[%emt 0:00:07]} 4. Be2 {[%emt 0:00:38]} Bxe2 {[%emt 0:00:19]} 5. Nxe2 {[%emt 0:00:10]} Qxd5 {[%emt 0:00:23]} 6. O-O {[%emt 0:01:03]} Nc6 {[%emt 0:00:29]} 7. Nbc3 {[%emt 0:00:31]} Qf5 {[%emt 0:01:21]} 8. a3 {[%emt 0:04:10]} O-O-O {[%emt 0:02:19]} 9. Be3 {[%emt 0:01:19]} e5 {[%emt 0:02:17]} 10. d5 {[%emt 0:02:07]} e4 {[%emt 0:01:58]} 11. Nd4 {[%emt 0:03:06]} Nxd4 {[%emt 0:01:28]} 12. Qxd4 {[%emt 0:00:15]} b6 {[%emt 0:01:18]} 13. Rad1 {[%emt 0:02:03]} Bd6 {[%emt 0:08:50]} 14. Qa4 {[%emt 0:12:57]} Ng4 {[%emt 0:04:11]} 15. h3 {[%emt 0:12:41]} Nxe3 {[%emt 0:10:13]} 16. fxe3 {[%emt 0:01:16]} Qe5 {[%emt 0:06:01]} 17. Qxe4 {[%emt 0:05:00]} Qh2+ {[%emt 0:00:58]} 18. Kf2 {[%emt 0:00:10]} Rde8 {[%emt 0:03:19]} 19. Qf5+ {[%emt 0:02:57]} Kb8 {[%emt 0:00:43]} 20. Ne4 {[%emt 0:03:00]} g6 {[%emt 0:10:57]} 21. Qf3 {[%emt 0:03:06]} Be7 {[%emt 0:01:04]} 22. Ng3 {[%emt 0:06:08]} Bh4 {[%emt 0:01:01]} 23. Rde1 {[%emt 0:07:51]} Re5 {[%emt 0:01:05]} 24. e4 {[%emt 0:31:18]} Rg5 {[%emt 0:00:23]} 25. Re3 {[%emt 0:00:00]} Rxg3 {[%emt 0:01:48]} 26. Qxg3 {[%emt 0:00:00]} Bxg3+ {[%emt 0:00:31]} 27. Rxg3 {[%emt 0:00:00]} Re8 {[%emt 0:00:23]} 28. Re1 {[%emt 0:00:00]} Re5 {[%emt 0:01:31]} 29. Kf3 {[%emt 0:00:00]} f5 {[%emt 0:00:30]} 30. Kf4 {[%emt 0:00:00]} Rxe4+ {[%emt 0:00:33]} 31. Rxe4 {[%emt 0:00:00]} fxe4 {[%emt 0:00:12]} 32. Kg4 {[%emt 0:00:00]} g5 {[%emt 0:01:01]} 33. c4 {[%emt 0:00:00]} h5+ {[%emt 0:00:09]} 34. Kxg5 {[%emt 0:00:00]} Qxg3+ {[%emt 0:00:08]} 35. Kxh5 {[%emt 0:00:00]} e3 {[%emt 0:00:25]} 36. c5 {[%emt 0:00:00]} e2 {[%emt 0:00:17]} 37. d6 {[%emt 0:00:00]} cxd6 {[%emt 0:00:18]} 38. cxd6 {[%emt 0:00:00]} e1=Q {[%emt 0:00:09]} 39. d7 {[%emt 0:00:00]} Qee5+ {[%emt 0:00:19]} 40. Kh6 {[%emt 0:00:00]} Qh8# {[%emt 0:00:09]} 0-1

[Event "Vienna Championship-B 2022"]
[Site "Vienna"]
[Date "2022.09.17"]
[Round "1.10"]
[White "Pantelic, Slobodan"]
[Black "Nemetz, Markus"]
[Result "1/2-1/2"]
[ECO "D02"]
[WhiteElo "1596"]
[BlackElo "1830"]
[Annotator "NA COMBH"]
[PlyCount "183"]
[EventDate "2022.09.17"]
[EventType "swiss"]
[EventCountry "AUT"]
[SourceTitle "playchess.com"]
[Source "ChessBase"]
[SourceQuality "1"]
[TimeControl "5400+30"]

1. Nf3 {[%emt 0:00:01]} Nf6 {[%emt 0:00:06]} 2. d4 {[%emt 0:00:03]} d5 {[%emt 0:00:08]} 3. Bf4 {[%emt 0:00:02]} e6 {[%emt 0:00:19]} 4. h3 {[%emt 0:00:03]} c5 {[%emt 0:00:19]} 5. c3 {[%emt 0:00:02]} Nc6 {[%emt 0:00:38]} 6. e3 {[%emt 0:00:04]} Qb6 {[%emt 0:00:56]} 7. Qc1 {[%emt 0:00:08]} Bd7 {[%emt 0:01:23]} 8. Be2 {[%emt 0:00:08]} Rc8 {[%emt 0:00:50]} 9. O-O {[%emt 0:00:03]} Be7 {[%emt 0:00:20]} 10. Na3 {[%emt 0:00:01]} O-O {[%emt 0:09:49]} 11. Nb5 {[%emt 0:00:54]} a6 {[%emt 0:04:46]} 12. Nd6 {[%emt 0:00:04]} Bxd6 {[%emt 0:01:50]} 13. Bxd6 {[%emt 0:00:04]} Nxd4 {[%emt 0:01:33]} 14. exd4 {[%emt 0:00:04]} Qxd6 {[%emt 0:00:11]} 15. Qe3 {[%emt 0:01:15]} cxd4 {[%emt 0:01:15]} 16. Nxd4 {[%emt 0:00:11]} e5 {[%emt 0:00:53]} 17. Nb3 {[%emt 0:00:07]} Rfe8 {[%emt 0:01:02]} 18. Rad1 {[%emt 0:00:04]} Ba4 {[%emt 0:03:29]} 19. Bf3 {[%emt 0:02:13]} e4 {[%emt 0:02:18]} 20. Be2 {[%emt 0:00:07]} Bxb3 {[%emt 0:00:21]} 21. axb3 {[%emt 0:00:02]} Qc5 {[%emt 0:02:10]} 22. Rd4 {[%emt 0:00:11]} h6 {[%emt 0:02:59]} 23. Rfd1 {[%emt 0:00:02]} a5 {[%emt 0:04:37]} 24. b4 {[%emt 0:01:55]} axb4 {[%emt 0:05:00]} 25. Rxb4 {[%emt 0:00:29]} Qxe3 {[%emt 0:01:43]} 26. fxe3 {[%emt 0:00:02]} Rc7 {[%emt 0:01:48]} 27. Ra1 {[%emt 0:00:06]} Kh7 {[%emt 0:08:31]} 28. Ra7 {[%emt 0:00:04]} Ree7 {[%emt 0:00:09]} 29. Ra8 {[%emt 0:00:54]} Kg6 {[%emt 0:02:43]} 30. Ra5 {[%emt 0:00:13]} Red7 {[%emt 0:02:36]} 31. Rab5 {[%emt 0:00:02]} Kh7 {[%emt 0:00:57]} 32. Rb6 {[%emt 0:00:11]} Kg8 {[%emt 0:01:49]} 33. Kf2 {[%emt 0:00:06]} Kf8 {[%emt 0:00:30]} 34. Kg3 {[%emt 0:00:17]} Ke7 {[%emt 0:01:52]} 35. h4 {[%emt 0:00:07]} Kd8 {[%emt 0:02:09]} 36. Kf4 {[%emt 0:00:17]} Re7 {[%emt 0:02:20]} 37. g4 {[%emt 0:00:23]} d4 {[%emt 0:00:36]} 38. Rxd4+ {[%emt 0:00:08]} Rcd7 {[%emt 0:02:16]} 39. Rbd6 {[%emt 0:00:13]} Rxd6 {[%emt 0:00:32]} 40. Rxd6+ {[%emt 0:00:05]} Kc7 {[%emt 0:00:03]} 41. Rd4 {[%emt 0:00:09]} Kc6 {[%emt 0:01:09]} 42. g5 {[%emt 0:00:02]} Nd5+ {[%emt 0:00:22]} 43. Kf5 {[%emt 0:00:26]} Nxe3+ {[%emt 0:00:13]} 44. Kf4 {[%emt 0:00:04]} Nd5+ {[%emt 0:00:20]} 45. Kg4 {[%emt 0:00:15]} hxg5 {[%emt 0:08:13]} 46. hxg5 {[%emt 0:00:05]} Re5 {[%emt 0:01:50]} 47. Rc4+ {[%emt 0:00:50]} Kd7 {[%emt 0:01:15]} 48. Rd4 {[%emt 0:00:05]} Ke7 {[%emt 0:01:00]} 49. Bc4 {[%emt 0:00:17]} Ne3+ {[%emt 0:00:16]} 50. Kf4 {[%emt 0:00:04]} Nxc4 {[%emt 0:07:19]} 51. Rxc4 {[%emt 0:00:06]} Ra5 {[%emt 0:03:56]} 52. Rxe4+ {[%emt 0:00:09]} Kd7 {[%emt 0:00:18]} 53. Rd4+ {[%emt 0:00:02]} Ke7 {[%emt 0:00:12]} 54. Rb4 {[%emt 0:00:02]} Ra7 {[%emt 0:01:12]} 55. Rb5 {[%emt 0:00:14]} f6 {[%emt 0:00:55]} 56. Kf5 {[%emt 0:00:06]} fxg5 {[%emt 0:00:32]} 57. Kxg5 {[%emt 0:00:02]} Kf7 {[%emt 0:00:13]} 58. Rf5+ {[%emt 0:00:14]} Kg8 {[%emt 0:00:17]} 59. Rc5 {[%emt 0:00:06]} Ra1 {[%emt 0:01:07]} 60. Rc8+ {[%emt 0:00:09]} Kh7 {[%emt 0:12:05]} 61. Rc7 {[%emt 1:46:08]} Rg1+ {[%emt 0:00:00]} 62. Kh4 {[%emt 0:00:00]} b6 {[%emt 0:00:00]} 63. Rc6 {[%emt 0:00:00]} Rg6 {[%emt 0:00:00]} 64. Rc4 {[%emt 0:00:00]} Kg8 {[%emt 0:00:00]} 65. Kh5 {[%emt 0:00:00]} Rd6 {[%emt 0:00:00]} 66. Kg5 {[%emt 0:00:00]} Kf7 {[%emt 0:00:00]} 67. Rc7+ {[%emt 0:00:00]} Kg8 {[%emt 0:00:00]} 68. c4 {[%emt 0:00:00]} Rd2 {[%emt 0:00:00]} 69. b4 {[%emt 0:00:00]} Rg2+ {[%emt 0:00:00]} 70. Kf5 {[%emt 0:00:00]} Rf2+ {[%emt 0:00:00]} 71. Ke4 {[%emt 0:00:00]} Rf6 {[%emt 0:00:00]} 72. Ke5 {[%emt 0:00:00]} Rh6 {[%emt 0:00:00]} 73. Kd5 {[%emt 0:00:00]} g5 {[%emt 0:00:00]} 74. Ke5 {[%emt 0:06:30]} Rh4 {[%emt 0:00:43]} 75. Kf5 {[%emt 0:00:00]} b5 {[%emt 0:00:38]} 76. Kxg5 {[%emt 0:00:00]} Rd4 {[%emt 0:02:00]} 77. cxb5 {[%emt 0:00:00]} Rxb4 {[%emt 0:00:07]} 78. Rb7 {[%emt 0:00:00]} Kf8 {[%emt 0:00:12]} 79. Kf5 {[%emt 0:00:00]} Ke8 {[%emt 0:00:06]} 80. Ke5 {[%emt 0:00:00]} Kd8 {[%emt 0:00:06]} 81. Kd5 {[%emt 0:00:00]} Kc8 {[%emt 0:00:11]} 82. Rb6 {[%emt 0:00:00]} Rb1 {[%emt 0:00:17]} 83. Kc5 {[%emt 0:00:00]} Kc7 {[%emt 0:00:24]} 84. Rh6 {[%emt 0:00:00]} Rc1+ {[%emt 0:07:16]} 85. Kb4 {[%emt 0:05:30]} Rb1+ {[%emt 0:00:00]} 86. Ka4 {[%emt 0:00:00]} Ra1+ {[%emt 0:00:00]} 87. Kb3 {[%emt 0:00:00]} Rb1+ {[%emt 0:00:00]} 88. Kc4 {[%emt 0:00:00]} Rc1+ {[%emt 0:00:00]} 89. Kd5 {[%emt 0:00:00]} Rd1+ {[%emt 0:00:00]} 90. Ke4 {[%emt 0:00:00]} Rb1 {[%emt 0:00:00]} 91. Rc6+ {[%emt 0:00:00]} Kb7 {[%emt 0:00:00]} 92. Rc5 {[%emt 0:00:00]} 1/2-1/2

[Event "Vienna Championship-B 2022"]
[Site "Vienna"]
[Date "2022.09.17"]
[Round "1.11"]
[White "Obenaus, Paul"]
[Black "Paseka, Christian"]
[Result "1-0"]
[ECO "A80"]
[WhiteElo "1825"]
[BlackElo "1568"]
[Annotator "NA COMBH"]
[PlyCount "83"]
[EventDate "2022.09.17"]
[EventType "swiss"]
[EventCountry "AUT"]
[SourceTitle "playchess.com"]
[Source "ChessBase"]
[SourceQuality "1"]
[TimeControl "5400+30"]

1. d4 f5 2. Bg5 g6 3. e3 Bg7 4. Nc3 Nf6 5. Bd3 d6 6. Nf3 O-O 7. h4 h6 8. Bxf6 Bxf6 9. Ne2 c6 10. c3 Qe8 11. Bc4+ d5 12. Bd3 Bg7 13. Nf4 e6 14. Rh3 Nd7 15. Rg3 Rf6 16. Ne5 Nf8 17. Qc2 b5 18. a4 Bd7 19. axb5 cxb5 20. Ra6 Bc8 21. Ra5 Bd7 22. Nxd7 Qxd7 23. Bxb5 Qc7 24. Qa4 Kh7 25. Ra6 Rb8 26. Rxa7 Qb6 27. Ra5 Rf7 28. b4 Rfb7 29. Kd2 Bf6 30. Rh3 g5 31. hxg5 Bxg5 32. Nd3 Ng6 33. Nc5 f4 34. Nd7 fxe3+ 35. fxe3 Qd6 36. Nxb8 Bxe3+ 37. Rxe3 Qf4 38. Ra7 Qf2+ 39. Be2 Nf4 40. Rxb7+ Kg6 41. Qe8+ Kf5 42. Re5+ 1-0

[Event "Vienna Championship-B 2022"]
[Site "Vienna"]
[Date "2022.09.17"]
[Round "1.12"]
[White "Onipko, Mark"]
[Black "Stinner, David"]
[Result "1/2-1/2"]
[ECO "B13"]
[WhiteElo "1507"]
[BlackElo "1823"]
[Annotator "NA COMBH"]
[PlyCount "106"]
[EventDate "2022.09.17"]
[EventType "swiss"]
[EventCountry "AUT"]
[SourceTitle "playchess.com"]
[Source "ChessBase"]
[SourceQuality "1"]
[TimeControl "5400+30"]

1. e4 {[%emt 0:00:03]} c6 {[%emt 0:00:21]} 2. d4 {[%emt 0:00:46]} d5 {[%emt 0:00:08]} 3. exd5 {[%emt 0:00:29]} cxd5 {[%emt 0:00:09]} 4. Bd3 {[%emt 0:00:24]} Nc6 {[%emt 0:02:00]} 5. c3 {[%emt 0:00:23]} Nf6 {[%emt 0:00:56]} 6. h3 {[%emt 0:00:37]} e5 {[%emt 0:00:59]} 7. dxe5 {[%emt 0:00:56]} Nxe5 {[%emt 0:00:18]} 8. Bc2 {[%emt 0:00:48]} Bd6 {[%emt 0:06:17]} 9. Nf3 {[%emt 0:02:04]} O-O {[%emt 0:08:49]} 10. O-O {[%emt 0:01:10]} Nxf3+ {[%emt 0:04:26]} 11. Qxf3 {[%emt 0:00:11]} Be6 {[%emt 0:01:50]} 12. Bg5 {[%emt 0:02:02]} Be7 {[%emt 0:02:52]} 13. Qd3 {[%emt 0:01:42]} Ne4 {[%emt 0:04:45]} 14. Bxe7 {[%emt 0:01:43]} Qxe7 {[%emt 0:00:10]} 15. Nd2 {[%emt 0:01:15]} Nf6 {[%emt 0:00:37]} 16. Nf3 {[%emt 0:00:50]} g6 {[%emt 0:03:36]} 17. Nd4 {[%emt 0:00:50]} Bd7 {[%emt 0:01:52]} 18. Rfe1 {[%emt 0:01:20]} Qd6 {[%emt 0:00:52]} 19. Qf3 {[%emt 0:01:27]} Rfe8 {[%emt 0:02:02]} 20. Rad1 {[%emt 0:03:13]} Rxe1+ {[%emt 0:03:09]} 21. Rxe1 {[%emt 0:00:07]} Re8 {[%emt 0:01:07]} 22. Rxe8+ {[%emt 0:02:18]} Bxe8 {[%emt 0:03:55]} 23. Qe3 {[%emt 0:00:31]} Kg7 {[%emt 0:04:17]} 24. Qg5 {[%emt 0:02:16]} Bd7 {[%emt 0:02:24]} 25. f3 {[%emt 0:02:30]} a6 {[%emt 0:07:03]} 26. Bb3 {[%emt 0:01:41]} h6 {[%emt 0:04:25]} 27. Qe3 {[%emt 0:00:30]} Be6 {[%emt 0:05:30]} 28. Bc2 {[%emt 0:03:44]} Nd7 {[%emt 0:05:45]} 29. f4 {[%emt 0:01:22]} Nb8 {[%emt 0:06:07]} 30. f5 {[%emt 0:01:42]} Bd7 {[%emt 0:00:54]} 31. fxg6 {[%emt 0:00:12]} fxg6 {[%emt 0:00:23]} 32. h4 {[%emt 0:02:52]} Nc6 {[%emt 0:01:56]} 33. h5 {[%emt 0:00:58]} Qe5 {[%emt 0:02:27]} 34. Qxe5+ {[%emt 0:05:07]} Nxe5 {[%emt 0:00:10]} 35. hxg6 {[%emt 0:02:36]} Nxg6 {[%emt 0:01:48]} 36. Bxg6 {[%emt 0:00:20]} Kxg6 {[%emt 0:00:09]} 37. Kf2 {[%emt 0:00:10]} Kf6 {[%emt 0:01:23]} 38. Kg3 {[%emt 0:02:07]} Kg5 {[%emt 0:03:52]} 39. Nf3+ {[%emt 0:01:21]} Kf5 {[%emt 0:00:47]} 40. Kh4 {[%emt 0:00:51]} Be8 {[%emt 0:02:48]} 41. Nd4+ {[%emt 0:03:47]} Ke4 {[%emt 0:01:42]} 42. g4 {[%emt 0:01:09]} Bd7 {[%emt 0:02:05]} 43. Kh5 {[%emt 0:00:22]} b5 {[%emt 0:00:37]} 44. Nb3 {[%emt 0:00:44]} Bc8 {[%emt 0:01:40]} 45. Nc5+ {[%emt 0:00:57]} Ke3 {[%emt 0:01:18]} 46. Kxh6 {[%emt 0:00:15]} Bxg4 {[%emt 0:00:10]} 47. Nxa6 {[%emt 0:00:57]} d4 {[%emt 0:00:34]} 48. cxd4 {[%emt 0:00:34]} Kxd4 {[%emt 0:00:09]} 49. b4 {[%emt 0:00:32]} Kc4 {[%emt 0:00:34]} 50. a3 {[%emt 0:01:33]} Kb3 {[%emt 0:00:13]} 51. Nc7 {[%emt 0:00:18]} Kxa3 {[%emt 0:00:15]} 52. Kg5 {[%emt 0:00:19]} Kxb4 {[%emt 0:00:06]} 53. Kxg4 {[%emt 0:00:07]} Kc4 {[%emt 0:00:10]} 1/2-1/2

[Event "Vienna Championship-B 2022"]
[Site "Vienna"]
[Date "2022.09.17"]
[Round "1.14"]
[White "Marinovic, Sara"]
[Black "Iehl, William"]
[Result "1-0"]
[ECO "B49"]
[WhiteElo "1384"]
[BlackElo "1781"]
[Annotator "NA COMBH"]
[PlyCount "91"]
[EventDate "2022.09.17"]
[EventType "swiss"]
[EventCountry "AUT"]
[SourceTitle "playchess.com"]
[Source "ChessBase"]
[SourceQuality "1"]
[TimeControl "5400+30"]

1. e4 {[%emt 0:00:03]} c5 {[%emt 0:00:01]} 2. Nf3 {[%emt 0:00:10]} e6 {[%emt 0:00:01]} 3. d4 {[%emt 0:00:09]} cxd4 {[%emt 0:00:02]} 4. Nxd4 {[%emt 0:00:10]} Nc6 {[%emt 0:00:01]} 5. Nc3 {[%emt 0:00:10]} Qc7 {[%emt 0:00:03]} 6. Be3 {[%emt 0:00:40]} a6 {[%emt 0:00:05]} 7. Be2 {[%emt 0:00:15]} Bb4 {[%emt 0:00:49]} 8. O-O {[%emt 0:00:44]} Nf6 {[%emt 0:00:02]} 9. Nxc6 {[%emt 0:04:29]} dxc6 {[%emt 0:06:57]} 10. Bd3 {[%emt 0:12:22]} O-O {[%emt 1:27:29]} 11. f4 {[%emt 0:05:54]} e5 {[%emt 0:00:00]} 12. f5 {[%emt 0:03:27]} b5 {[%emt 0:00:00]} 13. Qf3 {[%emt 0:06:30]} Bb7 {[%emt 0:00:00]} 14. g4 {[%emt 0:10:53]} Bxc3 {[%emt 0:00:00]} 15. bxc3 {[%emt 0:00:43]} c5 {[%emt 0:00:00]} 16. g5 {[%emt 0:02:12]} Ne8 {[%emt 0:00:00]} 17. f6 {[%emt 0:50:09]} gxf6 {[%emt 0:00:00]} 18. gxf6 {[%emt 0:00:00]} Kh8 {[%emt 0:00:00]} 19. Bh6 {[%emt 0:00:00]} Rg8+ {[%emt 0:00:00]} 20. Kf2 {[%emt 0:00:00]} Rg6 {[%emt 0:00:00]} 21. Bg7+ {[%emt 0:00:00]} Nxg7 {[%emt 0:00:00]} 22. fxg7+ {[%emt 0:00:00]} Kxg7 {[%emt 0:00:00]} 23. Rg1 {[%emt 0:00:00]} Qe7 {[%emt 0:00:00]} 24. Rxg6+ {[%emt 0:00:00]} hxg6 {[%emt 0:00:00]} 25. c4 {[%emt 0:00:00]} b4 {[%emt 0:00:00]} 26. Qg3 {[%emt 0:00:00]} Rh8 {[%emt 0:00:00]} 27. Rf1 {[%emt 0:00:00]} Qh4 {[%emt 0:00:00]} 28. Qxh4 {[%emt 0:00:00]} Rxh4 {[%emt 0:00:00]} 29. Kg3 {[%emt 0:00:00]} Rh5 {[%emt 0:00:00]} 30. h4 {[%emt 0:00:00]} Bc8 {[%emt 0:00:00]} 31. Be2 {[%emt 0:01:36]} Rh8 {[%emt 0:00:00]} 32. Rd1 {[%emt 0:00:09]} Bb7 {[%emt 0:00:00]} 33. Bf3 {[%emt 0:00:27]} f5 {[%emt 0:00:00]} 34. Rd7+ {[%emt 0:00:09]} Kf6 {[%emt 0:00:00]} 35. Rxb7 {[%emt 0:00:12]} f4+ {[%emt 0:00:00]} 36. Kg4 {[%emt 0:00:09]} Re8 {[%emt 0:00:00]} 37. Rb6+ {[%emt 0:00:40]} Re6 {[%emt 0:00:00]} 38. Rxe6+ {[%emt 0:00:08]} Kxe6 {[%emt 0:00:00]} 39. Kg5 {[%emt 0:00:03]} Kf7 {[%emt 0:00:00]} 40. h5 {[%emt 0:00:09]} gxh5 {[%emt 0:00:00]} 41. Bxh5+ {[%emt 0:00:12]} Ke6 {[%emt 0:00:00]} 42. Bg4+ {[%emt 0:00:32]} Kd6 {[%emt 0:00:00]} 43. Kf5 {[%emt 0:00:13]} a5 {[%emt 0:00:00]} 44. Bh5 {[%emt 0:00:19]} a4 {[%emt 0:00:00]} 45. Bd1 {[%emt 0:00:08]} a3 {[%emt 0:00:00]} 46. Bh5 {[%emt 0:09:24]} 1-0